Cogmind - Beta 15 *** ADVENTURER MODE // 2025.09.15 @ 15:11:10 Player: glorp Result: Destroyed by Y-54 Guardian with Gatling Laser Performance ------------- Evolutions (1) 500 Regions Visited (5) 1000 Robots Destroyed (28) 140 Value Destroyed (602) 602 Prototype IDs (2) 40 Alien Tech Used (0) 0 Bonus (0) 0 TOTAL SCORE: 2282 Bonus ------- None Cogmind --------- Core Integrity 0/400 Matter 300/300 Energy 450/450 System Corruption 0% Temperature Cool (18) Movement Core (100) Ox1 Location -6/Proximity Caves Parts ------- > --- POWER (1) -------- (None) > --- PROPULSION (4) --- (None) > --- UTILITY (2) ------ Energy Well > --- WEAPON (2) ------- (None) > --- INVENTORY (5) ---- Mining Laser Plasma Cutter CR-A16's Pointy Stick Peak State ------------ > --- POWER ------------ Light Ion Engine > --- PROPULSION ------- Flight Unit Flight Unit VTOL Module VTOL Module > --- UTILITY ---------- Small Storage Unit Targeting Computer > --- WEAPON ----------- Beamcaster CR-A16's Pointy Stick > --- INVENTORY -------- Light Ion Engine Flight Unit Flight Unit Flight Unit Light Assault Rifle Mining Laser Plasma Cutter [Rating: 18] Favorites ----------- Power Light Ion Engine Engine Light Ion Engine Power Core Light Nuclear Core Propulsion Flight Unit Leg Aluminum Leg Flight Unit Flight Unit Utility Small Storage Unit Storage Small Storage Unit Processor Targeting Computer Weapon Small Laser Energy Gun Small Laser Ballistic Gun Light Assault Rifle Launcher Grenade Launcher Special Weapon Plasma Cutter Impact Weapon Mace Piercing Weapon CR-A16's Pointy Stick Build | -11 -10 -9 -9 -7 -6 ------- Run | Yrd Mat Mat Min Zio Pro Slots Evolved 2 | . . 2 . . . Power . | . . . . . . Propulsion 2 | . . 2 . . . Utility . | . . . . . . Weapon . | . . . . . . Parts Attached 27 | 5 7 5 3 1 6 Power 4 | . 3 . . . 1 Engine 2 | . 1 . . . 1 Core 2 | . 2 . . . . Reactor . | . . . . . . Propulsion 11 | 2 2 2 2 . 3 Treads . | . . . . . . Leg 2 | 2 . . . . . Wheel . | . . . . . . Hover . | . . . . . . Flight 9 | . 2 2 2 . 3 Utility 3 | 1 1 . . . 1 Device . | . . . . . . Storage 2 | 1 . . . . 1 Processor 1 | . 1 . . . . Hackware . | . . . . . . Protection . | . . . . . . Artifact . | . . . . . . Weapon 9 | 2 1 3 1 1 1 Energy Gun 3 | 2 . . . . 1 Energy Cannon . | . . . . . . Ballistic Gun 2 | . 1 1 . . . Ballistic Cannon . | . . . . . . Launcher 1 | . . 1 . . . Special Weapon 1 | . . 1 . . . Impact Weapon 1 | . . . 1 . . Slashing Weapon . | . . . . . . Piercing Weapon 1 | . . . . 1 . Special Melee Weapon . | . . . . . . Unidentified Prototypes . | . . . . . . Parts Lost 19 | . 3 . . . 16 Power 4 | . 1 . . . 3 Propulsion 11 | . 2 . . . 9 Utility 2 | . . . . . 2 Weapon 2 | . . . . . 2 Highest Loss Streak 7 | . 3 . . . 7 To Critical Strikes . | . . . . . . Average Backups 6 | 3 7 6 7 8 5 Power 1 | 1 1 2 2 2 . Propulsion 2 | 1 3 1 1 3 1 Utility . | . . . . . . Weapon 2 | 1 2 3 4 2 1 Tool/Special . | . . . . . . Unused Backups 4 | . 3 . . . 1 Power . | . . . . . . Propulsion 3 | . 3 . . . . Utility . | . . . . . . Weapon 1 | . . . . . 1 Tool/Special . | . . . . . . Average Slot Usage (%) 89 | . 97 92 89 89 76 Engine 5 | . 10 . . . 6 Core 5 | . 2 11 11 11 . Leg 10 | . 26 . . . . Flight 23 | . 1 43 44 44 32 Storage 13 | . 14 11 11 11 16 Processor 9 | . 12 11 11 11 4 Energy Gun 10 | . 25 . . . . Ballistic Gun 3 | . 2 7 . . 6 Launcher 1 | . . 6 . . . Impact Weapon 2 | . . . 3 10 2 Piercing Weapon 1 | . . . . 2 5 Peak Build Rating 18 | 5 9 12 13 15 18 Average Rating 9 | 3 7 10 11 11 11 On Entrance 8 | . 5 9 11 11 15 Naked Turns . | . . . . . . Heaviest Build 16 | 8 13 13 13 15 16 Greatest Support 20 | 20 20 16 16 16 16 Greatest Overweight (x) 4 | . 2 . . . 4 Average Overweight (x) . | . . . . . . Largest Inventory Capacity 8 | 8 8 8 8 8 8 Average Capacity 7 | 6 8 8 8 8 7 Most Carried 8 | 6 8 8 8 8 8 Average Carried 6 | 4 7 6 7 8 5 Final Capacity 8 | 8 8 8 8 8 5 Final Carried 8 | 6 8 8 8 8 3 Class Distribution -------------------- 55% | Mutant 38% | Scavenger-Sprinter 6% | Sprinter Dominant Class ---------------- Mutant | -10/Materials Scavenger-Sprinter | -9/Materials Scavenger-Sprinter | -9/Mines Scavenger-Sprinter | -7/Zion Mutant | -6/Proximity Caves Resources | -11 -10 -9 -9 -7 -6 ----------- Run | Yrd Mat Mat Min Zio Pro Matter Collected 576 | 250 61 110 48 . 107 Remotely . | . . . . . . Salvage Created 642 | . 352 119 24 . 147 Parts 41 | . 25 4 . . 12 Haulers Intercepted . | . . . . . . Recyclers Shooed . | . . . . . . Parts Field Recycled . | . . . . . . Retrieved Matter . | . . . . . . Parts Self-Destructed 10 | . . . . . 10 Prevented . | . . . . . . Kills | -11 -10 -9 -9 -7 -6 ------- Run | Yrd Mat Mat Min Zio Pro Combat Hostiles Destroyed 23 | . 11 3 2 . 7 Melee 3 | . . . . . 3 Guns 17 | . 11 2 . . 4 AOE 1 | . . 1 . . . Classes Destroyed 6 | . 4 1 . . 1 Worker 2 | . 2 . . . . Drone 1 | . . . . . 1 Watcher 3 | . 2 1 . . . Swarmer 14 | . 6 . 2 . 6 Grunt 7 | . 5 2 . . . Sentry 1 | . . 1 . . . Best Kill Streak 6 | . 6 3 2 . 3 Combat Bots Only 5 | . 5 2 2 . 3 Max Kills in Single Turn 1 | . 1 1 1 . 1 Gunslinging . | . . . . . . Exploded 1 | . . 1 . . . Melee 1 | . . . . . 1 Uniques/NPCs Destroyed . | . . . . . . Combat | -11 -10 -9 -9 -7 -6 -------- Run | Yrd Mat Mat Min Zio Pro Hostile Shots Fired 282 | . 83 19 4 . 176 Missed 98 | . 22 6 3 . 67 Hits 184 | . 61 13 1 . 109 Projectile 184 | . 61 13 1 . 109 Damage Taken 1534 | . 474 125 6 . 929 Core 483 | . 77 29 6 . 371 Absorbed by Shields . | . . . . . . Ignored by Resistances 483 | . 150 39 2 . 292 Regen/Repaired (Parts) 2 | . . . . 2 . Core Remaining (%) 84 | 100 69 . . . . Volleys Fired 98 | . 34 23 . . 41 Largest 2 | . 2 2 . . 1 Hottest 90 | . 90 40 . . 75 Shots Fired 145 | . 68 36 . . 41 Gun 137 | . 68 28 . . 41 Cannon . | . . . . . . Launcher 3 | . . 3 . . . Special 5 | . . 5 . . . Kinetic 77 | . 16 28 . . 33 Thermal 65 | . 52 5 . . 8 Explosive 3 | . . 3 . . . Electromagnetic . | . . . . . . Robot Hit Streak 18 | . 10 16 . . 18 Robot Miss Streak 5 | . 3 1 . . 5 Penetration Max . | . . . . . . Secondary Targets 3 | . 3 . . . . Max Gunslinging Chain 1 | . 1 . . . . Shots Hit Robots 115 | . 46 27 5 . 37 Core Hits 49 | . 24 10 . . 15 Critical Kills 1 | . 1 . . . . Critical Parts Destroyed 1 | . . . 1 . . Critical Strikes 2 | . 1 . 1 . . Destroy 1 | . 1 . . . . Smash 1 | . . . 1 . . Melee Attacks 17 | . . . 5 . 12 Impact 6 | . . . 5 . 1 Slashing . | . . . . . . Piercing 11 | . . . . . 11 Sneak Attacks 2 | . . . 2 . . Combat Hostiles 2 | . . . 2 . . Follow-up Attacks 1 | . . . . . 1 Damage Inflicted 1544 | . 542 230 298 . 474 Guns 1019 | . 542 177 . . 300 Cannons . | . . . . . . Explosions 53 | . . 53 . . . Melee 472 | . . . 298 . 174 Ramming . | . . . . . . Kinetic 493 | . 101 177 . . 215 Thermal 526 | . 441 . . . 85 Explosive 53 | . . 53 . . . Electromagnetic . | . . . . . . Impact 330 | . . . 298 . 32 Slashing . | . . . . . . Piercing 142 | . . . . . 142 Highest Corruption . | . . . . . . Average Corruption . | . . . . . . Corruption Purged . | . . . . . . Corruption Blocked . | . . . . . . Overload Shots . | . . . . . . Overflow Damage 170 | . . . 158 . 12 Projectiles . | . . . . . . Explosions . | . . . . . . Melee 170 | . . . 158 . 12 Knockbacks 1 | . . . . . 1 Impact 1 | . . . . . 1 Kinetic . | . . . . . . Secondary . | . . . . . . Self-Inflicted Damage . | . . . . . . Shots . | . . . . . . Rammed . | . . . . . . Targets Rammed . | . . . . . . Kicked . | . . . . . . Crushed . | . . . . . . Highest Temperature 280 | . 252 31 . . 280 Average Temperature 72 | . 80 11 . . 111 Received Heat Transfer 399 | . 183 66 . . 150 Siege Activations . | . . . . . . Martial Activations . | . . . . . . Shielding Activations . | . . . . . . Robots Disrupted . | . . . . . . Combat Hostiles . | . . . . . . Robots Corrupted 2 | . . . 2 . . Combat Hostiles 2 | . . . 2 . . Parts Fried 2 | . . . 2 . . Impact Corruptions 6 | . . . 6 . . Robots Melted . | . . . . . . Combat Hostiles . | . . . . . . Parts Melted 2 | . 1 . . . 1 Heat Transferred 1254 | . 1106 . . . 148 Parts Sabotaged . | . . . . . . Parts Stolen . | . . . . . . Parts Stripped . | . . . . . . Power Chain Reactions . | . . . . . . Alert | -11 -10 -9 -9 -7 -6 ------- Run | Yrd Mat Mat Min Zio Pro Maximum Alert Level . | . . . . . . Low Security (%) 100 | 100 100 100 100 . . Level 1 . | . . . . . . Level 2 . | . . . . . . Level 3 . | . . . . . . Level 4 . | . . . . . . Level 5 . | . . . . . . High Security . | . . . . . . Max Security . | . . . . . . Peak Influence 85 | . 85 76 70 . . Initial 23 | . . 23 . . . Average 19 | . 18 33 12 . . Influence Increases 640 | . 291 124 80 . 145 Destroy 0b10 Robot/C 440 | . 220 60 40 . 120 Destroy 0b10 Robot/NC 30 | . 20 5 . . 5 Destroy Leader 96 | . 44 22 10 . 20 Successful Hack 11 | . 7 4 . . . Destroy Structure 18 | . . 18 . . . Partial Spotted 15 | . . 15 . . . Lose Combat Pursuer 30 | . . . 30 . . Influence Decreases 640 | . 226 188 11 70 145 Entered New Map 113 | . . 42 1 70 . Time Decay 467 | . 196 146 10 . 115 Lost Part 60 | . 30 . . . 30 Squads Dispatched 2 | . . 2 . . . Investigation 1 | . . 1 . . . Extermination . | . . . . . . Reinforcement 1 | . . 1 . . . Assault . | . . . . . . Garrison . | . . . . . . Intercept . | . . . . . . Searches Triggered . | . . . . . . Construction Impeded . | . . . . . . Haulers Reinforced . | . . . . . . Active Scanning Responses . | . . . . . . Cargo Convoy Interrupts . | . . . . . . Stealth | -11 -10 -9 -9 -7 -6 --------- Run | Yrd Mat Mat Min Zio Pro Distress Signals 1 | . . 1 . . . Communications Jammed . | . . . . . . Distress Signals . | . . . . . . Times Spotted 36 | . 15 9 3 . 9 Peak Tracking Total 6 | . 5 6 2 . 3 Tactical Retreats 1 | . . . 1 . . Traps | -11 -10 -9 -9 -7 -6 ------- Run | Yrd Mat Mat Min Zio Pro Traps Triggered . | . . . . . . Indirectly . | . . . . . . Trap Hack Attempts . | . . . . . . Triggered . | . . . . . . Disarmed . | . . . . . . Reprogrammed . | . . . . . . Reused . | . . . . . . Traps Extracted . | . . . . . . Installed . | . . . . . . Triggered . | . . . . . . Machines | -11 -10 -9 -9 -7 -6 ---------- Run | Yrd Mat Mat Min Zio Pro Machines Disabled . | . . . . . . Max in Single Turn . | . . . . . . Machines Repaired . | . . . . . . Machines Dismantled . | . . . . . . Machines Sabotaged . | . . . . . . Overloaded Fab Kills . | . . . . . . Hacking | -11 -10 -9 -9 -7 -6 --------- Run | Yrd Mat Mat Min Zio Pro Machines Accessed 3 | . 2 1 . . . Terminals 3 | . 2 1 . . . Fabricators . | . . . . . . Repair Stations . | . . . . . . Recycling Units . | . . . . . . Scanalyzers . | . . . . . . Garrison Access . | . . . . . . Total Hacks 8 | . 5 3 . . . Successful 5 | . 3 2 . . . Failed 3 | . 2 1 . . . Catastrophic . | . . . . . . Database Lockouts . | . . . . . . Manual 2 | . 2 . . . . Terminals 8 | . 5 3 . . . Fabricators . | . . . . . . Repair Stations . | . . . . . . Recycling Units . | . . . . . . Scanalyzers . | . . . . . . Garrison Access . | . . . . . . Terminal Hacks 5 | . 3 2 . . . Prototype ID Bank 1 | . 1 . . . . Level Access Points 1 | . 1 . . . . Reinforcement Status 1 | . . 1 . . . Hauler Manifests 1 | . 1 . . . . Zone Layout 1 | . . 1 . . . Fabricator Hacks . | . . . . . . Repair Station Hacks . | . . . . . . Recycling Unit Hacks . | . . . . . . Scanalyzer . | . . . . . . Garrison Access Hacks . | . . . . . . Unauthorized Hacks . | . . . . . . Terminals . | . . . . . . Fabricators . | . . . . . . Repair Stations . | . . . . . . Recycling Units . | . . . . . . Scanalyzers . | . . . . . . Garrison Access . | . . . . . . Data Cores Recovered . | . . . . . . Used . | . . . . . . Hacking Detections 2 | . 1 1 . . . Full Trace Events 1 | . . 1 . . . Feedback Events . | . . . . . . Feedback Blocked . | . . . . . . Robot Schematics Acquired . | . . . . . . Robots Built . | . . . . . . Authchips . | . . . . . . Time . | . . . . . . Total Robot Build Rating . | . . . . . . Part Schematics Acquired . | . . . . . . Parts Built . | . . . . . . Authchips . | . . . . . . Time . | . . . . . . Total Part Build Rating . | . . . . . . Parts Repaired . | . . . . . . Time . | . . . . . . Parts Recycled . | . . . . . . Recycled Matter . | . . . . . . Retrieved Matter . | . . . . . . Retrieved Components . | . . . . . . Parts Scanalyzed . | . . . . . . Part Schematics Acquired . | . . . . . . Parts Damaged . | . . . . . . Bothacking | -11 -10 -9 -9 -7 -6 ------------ Run | Yrd Mat Mat Min Zio Pro Used RIF Installer . | . . . . . . Robots Hacked . | . . . . . . Non-combat . | . . . . . . Combat . | . . . . . . Robot Hacks Applied . | . . . . . . Relay Couplers Released . | . . . . . . Fabnet Peak Effective % . | . . . . . . Robots Rewired . | . . . . . . Allies Hacked . | . . . . . . Hacks Repelled . | . . . . . . Allies | -11 -10 -9 -9 -7 -6 -------- Run | Yrd Mat Mat Min Zio Pro Total Allies . | . . . . . . Largest Group . | . . . . . . Highest-Rated Group . | . . . . . . Highest-Rated Ally . | . . . . . . Total Orders . | . . . . . . Ally Attacks . | . . . . . . Total Damage . | . . . . . . Kills . | . . . . . . Allies Corrupted . | . . . . . . Allies Melted . | . . . . . . Intel | -11 -10 -9 -9 -7 -6 ------- Run | Yrd Mat Mat Min Zio Pro Active Infowar (turns) . | . . . . . . Robot Analysis Total . | . . . . . . Derelict Logs Recovered 4 | . . . 2 1 1 Drone Launches . | . . . . . . Drone Recoveries . | . . . . . . Exploration | -11 -10 -9 -9 -7 -6 ------------- Run | Yrd Mat Mat Min Zio Pro Turns Passed 1943 | 116 748 320 114 191 454 Spaces Moved 2384 | 93 484 225 293 517 772 Core 33 | 12 1 . . . 20 Treads . | . . . . . . Legs 533 | 81 452 . . . . Wheels . | . . . . . . Hover . | . . . . . . Flight 1818 | . 31 225 293 517 752 Fastest Speed 28 | 50 37 31 31 31 28 Average Speed 55 | 110 118 31 31 31 41 Slowest Speed 250 | 120 150 31 31 31 250 Overloaded Moves . | . . . . . . Propulsion Burnouts . | . . . . . . Robots Hopped 6 | . . 5 1 . . Potential Cave-ins . | . . . . . . Cave-ins Triggered . | . . . . . . Exploration Rate (%) 45 | 5 81 30 57 44 56 Regions Visited 5 Branch Regions 3 Pre-discovered Areas . | . . . . . . Known Exits Taken 1 | . 1 . . . . Unknown Exits Taken 4 | 1 . 1 1 1 . Scrap Searched 2 | . . . 1 . 1 Spaces Dug . | . . . . . . Terrain Destroyed 23 | . . 23 . . . Melee . | . . . . . . Projectile . | . . . . . . AOE 23 | . . 23 . . . Terrain Rammed . | . . . . . . Walls Destroyed . | . . . . . . Machines Disabled . | . . . . . . Actions | -11 -10 -9 -9 -7 -6 --------- Run | Yrd Mat Mat Min Zio Pro Total 2837 | 104 594 436 308 546 849 Wait 282 | . 60 183 . 27 12 Move 2368 | 92 483 215 290 516 772 Hop 5 | . . 4 1 . . Pick Up 17 | 7 7 . 3 . . Fast Attach 13 | 4 2 1 1 2 3 Attach 15 | 1 3 5 . . 6 Detach 6 | . . 5 . . 1 Swap 6 | . 2 . 2 . 2 Drop 11 | . 3 . 6 1 1 Fire 98 | . 34 23 . . 41 Melee 16 | . . . 5 . 11 Ram . | . . . . . . Kick . | . . . . . . Crush . | . . . . . . Escape Stasis . | . . . . . . Rewire . | . . . . . . Trap . | . . . . . . Miscellaneous . | . . . . . . Route ------- -11/Scrapyard -10/Materials (discovered 3 exits: *Mat x3) -9/Materials -9/Mines (discovered 2 exits: [*Mat] / [*Zio]) -7/Zion -6/Proximity Caves History --------- Turn | Location | Event 7 | -11/Scrapyard | Discovered new exit (range 16) 117 | -11/Scrapyard | Entered Materials 261 | -10/Materials | Identified exit to Materials 312 | -10/Materials | Build established: Mutant 850 | -10/Materials | Lost 3 parts (1p2n) 865 | -10/Materials | Entered another Materials area 865 | -9/Materials | Evolved 2 slots: Propulsion x2 1179 | -9/Materials | Discovered new exit (range 5) 1181 | -9/Materials | Build established: Scavenger-Sprinter 1185 | -9/Materials | Entered Mines 1199 | -9/Mines | Learned Materials stockpile data 1222 | -9/Mines | Discovered new exit (range 6) 1249 | -9/Mines | Learned Materials terminal intel 1289 | -9/Mines | A Derelict revealed a hidden shortcut to a safe place 1299 | -9/Mines | Entered Zion 1366 | -7/Zion | Learned Factory stockpile data 1451 | -7/Zion | Found CR-A16's Pointy Stick 1485 | -7/Zion | Discovered new exit (range 15) 1490 | -7/Zion | Entered Proximity Caves 1585 | -6/Proximity Caves | Learned location of 1 exit from Factory 1661 | -6/Proximity Caves | Core integrity fell below 50% 1690 | -6/Proximity Caves | Lost 7 parts (1p4n1u1w) 1892 | -6/Proximity Caves | Spotted B-75 Beast 1901 | -6/Proximity Caves | Attracted the attention of an 0b10 checkpoint 1906 | -6/Proximity Caves | Spotter reported a threat 1935 | -6/Proximity Caves | Core integrity fell below 20% 1944 | -6/Proximity Caves | Destroyed by Y-54 Guardian with Gatling Laser Last Messages --------------- Acquired Flight Unit. Acquired 17 matter. Y-54 Guardian: "INTERCEPTING UNREGISTERED DERELICT." N-01 Spotter is scanning... N-01 Spotter sends a signal. ALERT: Unidentified potential threat approaching Complex 0b10. N-01 Spotter destroyed. Acquired 4 matter. Flight Unit destroyed. Lgt. Ion Engine destroyed. Lgt. Ion Engine fries itself beyond repair. Hover Unit fries itself beyond repair. Adv. Visual Processing Unit fries itself beyond repair. Flight Unit destroyed. Sml. Storage Unit destroyed. Flight Unit destroyed. Lgt. Assault Rifle destroyed. Map ----- +----------------------------------------------------+ | #???????????????????????????????????? | | #???????????????????????????????????? | | # ## #???????????????????????????????????? | | ## #" #???????????????????????????????????? | | ?# ##???????????????????????????????????? | | ?# #????????????????????????????????????? | | ?# #????????????????????????????????????? | | ### %##???????????????????????????????????? | | ??# ##?###??????????????????????????????? | | ???# # ### ##?????????????????????????????? | | ?? ## ##????????????????????????????? | | ? ?## ##??????? #?????????????????? | | # ###??#### ##?????? ## ??????????????? | | ###?# ????????## #?????? ????????????? | | ????#??????????# #????? ????????????? | | ???????????????## #????? ????????????? | | ?????????????#### ##????? ?????????????? | | ?????????????# ##????? ???????????????? | | ?????????????# ##?????? ????????????????? | | ?????????????# ####??????? #?????????????????? | | ?????????????# #????###### #?????????????????? | | ?????????????# #???## ##???? #?????????? | | ?????????????# #???# ## #?????????? | | ?????????????# ##??# #????????? | | ?????????????# #### #????????? | | ?????????????# % @ #????????? | | ?????????????# ## ????????? | | ?????????????# ######## ## ?????????? | | ?????????????# ??????#Y ##????????????? | | ?????????????# ??????$ #?????????????? | | ?????????????## ????? ## #????????????? | | ??????????????#" ?????### ##??###????????????? | | ??????????????#%" ???????####??????????????????? | | ?????????????? " ?????????????????????????????? | | ?????????????? ????????????????????????????? | | ?????????????? #### #????????????????????????????? | | ?????????????##????##????????????????????????????? | | ?????????????????????????????????????????????????? | | ?????????????????????????????????????????????????? | | ?????????????????????????????????????????????????? | | ?????????????????????????????????????????????????? | | ?????????????????????????????????????????????????? | | ?????????????????????????????????????????????????? | | ?????????????????????????????????????????????????? | | ?????????????????????????????????????????????????? | | ?????????????????????????????????????????????????? | | ?????????????????????????????????????????????????? | | ?????????????????????????????????????????????????? | | ?????????????????????????????????????????????????? | | ?????????????????????????????????????????????????? | +----------------------------------------------------+ Best States ------------- Heat Dissipation 28 Energy Generation 14 Energy Capacity 475 Matter Stores 300 Matter Capacity 300 Sight Range 16 Terrain Scan Density 10 Resistance: KI 20 Resistance: TH 20 Resistance: EX 20 Resistance: EM 20 Resistance: I 20 Resistance: S 20 Resistance: P 20 Evasion (%) 64 Targeting Accuracy 5 Offensive Hacking 10 Item Schematics ----------------- None Robot Schematics ------------------ None Fabricated ------------ Nothing Repaired ---------- Nothing Alien Tech Used ----------------- None Achievements -------------- Robot Respite Shopping List Challenges ------------ None Game ------ Seed MissileInterceptLegs Manual? 0 Play Time 00:19:20 Cumulative 4.9 hours Start 2025.09.15 @ 14:55:49 End 2025.09.15 @ 15:11:10 Sessions 1 Manual Loads 0 Difficulty Adventurer Special Mode None Game No. 13 Rogue 0 Adventurer 13 Explorer 0 Win Type - Total 0 Types 0/0/0/0/0/0/0/0/0/0 Lore% 3 Gallery% 10 Achievement% 18 Wizard Run 0 Options --------- Layout 1 ASCII 0 Keyboard 1 Movement Numpad Keybinds 0 Fullscreen 1 Font 24/Smallcaps Map View 50x35 Zoom Use 0% Tactical HUD 0 Map Filters NONE Filters NONE Steam 0 RUN: 3ce8fe0d-62a3-4106-9f6a-dddfb6c996c3